lending/lending_fUSD_20240504
["ID","MTS","AMOUNT","RATE_DAILY","PERIOD"]
[325389208,1714804318940,-1209.68,0.00041917,33]
[325389209,1714804318949,-500.0,0.00041917,33]
[325389210,1714804318959,-500.0,0.00041917,33]
[325389211,1714804318967,-565.5,0.00041917,33]
[325389212,1714804318978,-761.51,0.00041917,33]
[325389213,1714804318988,-500.0,0.00041917,33]
[325389214,1714804318997,-500.0,0.00041917,33]
[325389215,1714804319008,-1983.56,0.00041917,33]
[325389216,1714804319017,-500.0,0.00041917,33]
[325389217,1714804319027,-660.69,0.00041917,33]
[325389218,1714804319038,-806.86,0.00041917,33]
[325389219,1714804319048,-500.0,0.00041917,33]
[325389220,1714804319057,-504.45099569,0.00041917,33]
[325389221,1714804319067,-1416.19,0.00041917,33]
[325389222,1714804319076,-501.32650612,0.00041917,33]
[325389223,1714804319085,-1092.41,0.00041917,33]
[325389224,1714804319094,-500.0,0.00041917,33]
[325389225,1714804319103,-834.0,0.00041917,33]
[325389226,1714804319112,-536.36,0.00041917,33]
[325389227,1714804319122,-500.0,0.00041917,33]
[325389228,1714804319132,-500.0,0.00041917,33]
[325389229,1714804319141,-500.0,0.00041917,33]
[325389230,1714804319151,-1020.35,0.00041917,33]
[325389231,1714804319162,-500.0,0.00041917,33]
[325389232,1714804319172,-500.0,0.00041917,33]
[325389233,1714804319181,-533.11,0.00041917,33]
[325389234,1714804319190,-500.0,0.00041917,33]
[325389235,1714804319199,-500.0,0.00041917,33]
[325389236,1714804319208,-500.0,0.00041917,33]
[325389237,1714804319217,-500.0,0.00041917,33]
[325389238,1714804319227,-1444.23,0.00041917,33]
[325389239,1714804319236,-500.0,0.00041917,33]
[325389240,1714804319246,-761.8,0.00041917,33]
[325389241,1714804319255,-961.56,0.00041917,33]
[325389242,1714804319264,-507.83,0.00041917,2]
[325389243,1714804319274,-1168.68,0.00041917,33]
[325389244,1714804319283,-821.47,0.00041917,33]
[325389245,1714804319292,-1417.67,0.00041917,33]
[325389246,1714804319301,-1214.66,0.00041917,33]
[325389247,1714804319311,-1108.1,0.00041917,33]
[325389248,1714804319320,-1117.94,0.00041917,33]
[325389249,1714804319329,-500.0,0.00041917,33]
[325389250,1714804319338,-500.0,0.00041917,33]
[325389251,1714804319348,-500.0,0.00041917,33]
[325389252,1714804319358,-1253.45,0.00041917,33]
[325389253,1714804319367,-500.0,0.00041917,33]
[325389254,1714804319376,-500.0,0.00041917,33]
[325389255,1714804319386,-515.15028833,0.00041917,33]
[325389256,1714804319395,-500.0,0.00041917,33]
[325389257,1714804319405,-608.67,0.00041917,33]
[325389258,1714804319415,-1705.9,0.00041917,33]
[325389259,1714804319424,-500.0,0.00041917,33]
[325389260,1714804319434,-500.0,0.00041917,33]
[325389261,1714804319444,-989.33,0.00041917,33]
[325389262,1714804319454,-500.0,0.00041917,33]
[325389263,1714804319463,-500.0,0.00041917,33]
[325389264,1714804319473,-500.0,0.00041917,33]
[325389265,1714804319483,-1148.55,0.00041917,33]
[325389266,1714804319493,-500.0,0.00041917,33]
[325389267,1714804319502,-500.0,0.00041917,33]
[325389268,1714804319512,-962.07,0.00041917,33]
[325389269,1714804319521,-799.27,0.00041917,33]
[325389270,1714804319531,-1273.17,0.00041917,33]
[325389271,1714804319540,-500.0,0.00041917,33]
[325389272,1714804319549,-529.13525282,0.00041917,33]
[325389273,1714804319558,-500.0,0.00041917,33]
[325389274,1714804319568,-500.0,0.00041917,33]
[325389275,1714804319577,-500.0,0.00041917,33]
[325389276,1714804319586,-743.85,0.00041917,33]
[325389277,1714804319596,-1314.71,0.00041917,33]
[325389278,1714804319609,-500.0,0.00041917,33]
[325389279,1714804319619,-500.0,0.00041917,33]
[325389280,1714804319628,-500.0,0.00041917,33]
[325389281,1714804319637,-217.35,0.00041917,33]
[325389282,1714804319648,-1040.47,0.00041917,2]
[325389283,1714804319657,-458.08018395,0.00041917,33]
[325389284,1714804319666,-982.9,0.00041917,33]
[325389285,1714804319676,-937.01,0.00041917,33]
[325389286,1714804319688,-1558.67,0.00041917,33]
[325389287,1714804319698,-500.0,0.00041917,33]
[325389288,1714804319706,-500.0,0.00041917,33]
[325389289,1714804319715,-500.0,0.00041917,33]
[325389290,1714804319725,-500.0,0.00041917,33]
[325389291,1714804319734,-615.9,0.00041917,33]
[325389292,1714804319743,-978.41,0.00041917,33]
[325389293,1714804319753,-808.14,0.00041917,33]
[325389294,1714804319762,-500.0,0.00041917,33]
[325389295,1714804319771,-500.0,0.00041917,33]
[325389296,1714804319780,-500.0,0.00041917,33]
[325389297,1714804319790,-500.0,0.00041917,33]
[325389298,1714804319799,-500.0,0.00041917,33]
[325389299,1714804319809,-500.0,0.00041917,33]
[325389300,1714804319818,-632.44303993,0.00041917,33]
[325389301,1714804319827,-500.0,0.00041917,33]
[325389302,1714804319836,-500.0,0.00041917,33]
[325389303,1714804319845,-500.0,0.00041917,33]
[325389304,1714804319855,-1124.12,0.00041917,33]
[325389305,1714804319864,-500.0,0.00041917,33]
[325389306,1714804319873,-1144.96,0.00041917,33]
[325389307,1714804319883,-500.0,0.00041917,33]
[325389308,1714804319892,-1188.07,0.00041917,33]
[325389309,1714804319902,-500.0,0.00041917,33]
[325389310,1714804319911,-939.08,0.00041917,33]
[325389311,1714804319920,-1212.15,0.00041917,33]
[325389312,1714804319929,-500.0,0.00041917,33]
[325389313,1714804319938,-519.53,0.00041917,33]
[325389314,1714804319948,-1209.83,0.00041917,33]
[325389315,1714804319957,-500.0,0.00041917,33]
[325389316,1714804319966,-777.58,0.00041917,33]
[325389317,1714804319975,-500.0,0.00041917,33]
[325389318,1714804319985,-500.0,0.00041917,33]
[325389319,1714804319994,-1670.06,0.00041917,33]
[325389320,1714804320004,-843.79,0.00041917,33]
[325389321,1714804320014,-1124.58,0.00041917,33]
[325389322,1714804320024,-500.0,0.00041917,33]
[325389323,1714804320034,-500.0,0.00041917,33]
[325389324,1714804320044,-150.06717312,0.00041917,33]
[325389325,1714804320053,-500.0,0.00041917,33]
[325389326,1714804320063,-1945.55,0.00041917,33]
[325389327,1714804320072,-1587.86,0.00041917,33]
[325389328,1714804320082,-991.37,0.00041917,33]
[325389329,1714804320091,-500.0,0.00041917,33]
[325389330,1714804320101,-1784.57,0.00041917,33]
[325389331,1714804320110,-1768.02,0.00041917,33]
[325389332,1714804320119,-500.0,0.00041917,33]
[325389333,1714804320130,-500.0,0.00041917,33]
[325389334,1714804320139,-1611.69,0.00041917,2]
[325389335,1714804320149,-500.0,0.00041917,33]
[325389336,1714804320158,-926.38,0.00041917,33]
[325389337,1714804320169,-1874.17,0.00041917,33]
[325389338,1714804320178,-846.34,0.00041917,33]
[325389339,1714804320187,-500.0,0.00041917,33]
[325389340,1714804320197,-1065.51,0.00041917,33]
[325389341,1714804320207,-500.0,0.00041917,33]
[325389342,1714804320215,-881.34,0.00041917,33]
[325389343,1714804320225,-500.0,0.00041917,33]
[325389344,1714804320235,-783.78,0.00041917,33]
[325389345,1714804320245,-500.0,0.00041917,33]
[325389346,1714804320254,-1259.0,0.00041917,33]
[325389347,1714804320263,-987.69,0.00041917,33]
[325389348,1714804320273,-500.0,0.00041917,33]
[325389349,1714804320282,-500.0,0.00041917,33]
[325389350,1714804320292,-1409.72,0.00041917,33]
[325389351,1714804320301,-500.0,0.00041917,33]
[325389352,1714804320311,-649.76,0.00041917,33]
[325389353,1714804320321,-500.0,0.00041917,33]
[325389354,1714804320330,-537.50620572,0.00041917,33]
[325389355,1714804320339,-514.40746275,0.00041917,33]
[325389356,1714804320348,-1280.09,0.00041917,33]
[325389357,1714804320358,-500.0,0.00041917,33]
[325389358,1714804320367,-553.79919454,0.00041917,33]
[325389359,1714804320377,-500.0,0.00041917,33]
[325389360,1714804320386,-2108.41,0.00041917,33]
[325389361,1714804320396,-500.0,0.00041917,33]
[325389362,1714804320406,-565.62,0.00041917,33]
[325389363,1714804320417,-1319.35,0.00041917,33]
[325389364,1714804320426,-507.32804099,0.00041917,33]
[325389365,1714804320435,-2077.83,0.00041917,33]
[325389366,1714804320445,-810.04,0.00041917,33]
[325389367,1714804320454,-1940.0,0.00041917,33]
[325389368,1714804320463,-500.0,0.00041917,33]
[325389369,1714804320473,-761.56,0.00041917,33]
[325389370,1714804320483,-1006.32,0.00041917,7]
[325389371,1714804320492,-500.0,0.00041917,33]
[325389372,1714804320501,-500.0,0.00041917,33]
[325389373,1714804320510,-500.0,0.00041917,33]
[325389374,1714804320520,-1581.5,0.00041917,33]
[325389375,1714804320530,-1020.31,0.00041917,33]
[325389376,1714804320540,-1257.59,0.00041917,33]
[325389377,1714804320550,-500.0,0.00041917,33]
[325389378,1714804320559,-500.0,0.00041917,33]
[325389379,1714804320569,-915.97,0.00041917,33]
[325389380,1714804320578,-870.47,0.00041917,33]
[325389381,1714804320587,-500.0,0.00041917,33]
[325389382,1714804320598,-500.0,0.00041917,33]
[325389383,1714804320611,-901.71,0.00041917,33]
[325389384,1714804320621,-1367.99,0.00041917,33]
[325389385,1714804320630,-519.62566269,0.00041917,33]
[325389386,1714804320640,-423.95466515,0.00041917,33]
[325389387,1714804320649,-500.0,0.00041917,33]
[325389388,1714804320658,-500.0,0.00041917,33]
[325389389,1714804320668,-2013.36,0.00041917,33]
[325389390,1714804320678,-500.0,0.00041917,33]
[325389391,1714804320688,-922.12,0.00041917,33]
[325389392,1714804320698,-500.0,0.00041917,33]
[325389393,1714804320708,-500.0,0.00041917,33]
[325389394,1714804320719,-628.23,0.00041917,33]
[325389395,1714804320730,-618.01,0.00041917,33]
[325389396,1714804320740,-883.1,0.00041917,33]
[325389397,1714804320752,-3150.14,0.00041917,33]
[325389398,1714804320761,-500.0,0.00041917,33]
[325389399,1714804320771,-1804.82,0.00041917,33]
[325389400,1714804320780,-2755.85,0.00041917,33]
[325389401,1714804320789,-1113.45,0.00041917,33]
[325389402,1714804320798,-567.51,0.00041917,33]
[325389403,1714804320808,-1474.07,0.00041917,33]
[325389404,1714804320817,-611.78,0.00041917,33]
[325389405,1714804320826,-500.0,0.00041917,33]
[325389406,1714804320835,-2937.47,0.00041917,33]
[325389407,1714804320845,-717.24,0.00041917,33]
[325389408,1714804320948,-1038.35,0.00041917,33]
[325389409,1714804320958,-500.0,0.00041917,33]
[325389410,1714804320967,-852.43,0.00041917,33]
[325389411,1714804320976,-2270.29,0.00041917,33]
[325389412,1714804320986,-1672.56,0.00041917,33]
[325389413,1714804320995,-528.73,0.00041917,33]
[325389414,1714804321005,-500.0,0.00041917,33]
[325389415,1714804321014,-1878.56,0.00041917,33]
[325389416,1714804321024,-1079.87,0.00041917,33]
[325389417,1714804321034,-514.71,0.00041917,33]
[325389418,1714804321043,-1006.42,0.00041917,33]
[325389419,1714804321052,-2608.1,0.00041917,33]
[325389420,1714804321062,-1630.42,0.00041917,33]
[325389421,1714804321071,-657.41,0.00041917,33]
[325389422,1714804321081,-2322.58,0.00041917,33]
[325389423,1714804321090,-500.0,0.00041917,33]
[325389424,1714804321099,-500.0,0.00041917,33]
[325389425,1714804321108,-659.45,0.00041917,33]
[325389426,1714804321118,-500.0,0.00041917,33]
[325389427,1714804321127,-532.28457926,0.00041917,33]
[325389428,1714804321137,-546.23,0.00041917,33]
[325389429,1714804321147,-500.0,0.00041917,33]
[325389430,1714804321156,-2545.47,0.00041917,33]
[325389431,1714804321166,-984.1,0.00041917,33]
[325389432,1714804321175,-813.57,0.00041917,33]
[325389433,1714804321184,-1006.96,0.00041917,33]
[325389434,1714804321194,-500.0,0.00041917,33]
[325389435,1714804321203,-1152.69,0.00041917,33]
[325389436,1714804321213,-2531.0,0.00041917,33]
[325389437,1714804321222,-521.46,0.00041917,33]
[325389438,1714804321232,-500.0,0.00041917,33]
[325389439,1714804321241,-591.77,0.00041917,33]
[325389440,1714804321251,-500.0,0.00041917,33]
[325389441,1714804321260,-538.23,0.00041917,33]
[325389442,1714804321270,-500.0,0.00041917,33]
[325389443,1714804321279,-500.0,0.00041917,33]
[325389444,1714804321289,-500.0,0.00041917,2]
[325389445,1714804321299,-500.0,0.00041917,33]
[325389446,1714804321308,-1634.81,0.00041917,33]
[325389447,1714804321318,-500.0,0.00041917,33]
[325389448,1714804321327,-500.0,0.00041917,33]
[325389449,1714804321336,-1694.89,0.00041917,33]
[325389450,1714804321346,-1425.16,0.00041917,33]
[325389451,1714804321356,-500.0,0.00041917,33]
[325389452,1714804321366,-663.29,0.00041917,33]
[325389453,1714804321376,-1243.99,0.00041917,33]
[325389454,1714804321386,-1090.81,0.00041917,33]
[325389455,1714804321395,-250.72706488,0.00041917,33]
[325389456,1714804321404,-500.0,0.00041917,33]
[325389457,1714804321413,-690.86,0.00041917,33]
[325389458,1714804321423,-1531.17,0.00041917,33]
[325389459,1714804321433,-2685.9,0.00041917,33]
[325389460,1714804321442,-705.97,0.00041917,33]
[325389461,1714804321451,-1068.48,0.00041917,33]
[325389462,1714804321460,-1070.62,0.00041917,33]
[325389463,1714804321470,-810.19,0.00041917,33]
[325389464,1714804321480,-959.01,0.00041917,33]
[325389465,1714804321489,-560.78,0.00041917,33]
[325389466,1714804321499,-500.0,0.00041917,33]
[325389467,1714804321508,-500.0,0.00041917,33]
[325389468,1714804321517,-500.0,0.00041917,33]
[325389469,1714804321527,-500.0,0.00041917,33]
[325389470,1714804321536,-981.0,0.00041917,33]
[325389471,1714804321546,-500.0,0.00041917,33]
[325389472,1714804321556,-500.0,0.00041917,33]
[325389473,1714804321565,-873.41,0.00041917,33]
[325389474,1714804321574,-1563.11,0.00041917,33]
[325389475,1714804321584,-1086.48,0.00041917,33]
[325389476,1714804321593,-500.0,0.00041917,33]
[325389477,1714804321608,-1795.12,0.00041917,33]
[325389478,1714804321618,-500.0,0.00041917,33]
[325389479,1714804321627,-974.98,0.00041917,33]
[325389480,1714804321636,-500.0,0.00041917,33]
[325389481,1714804321646,-2156.56,0.00041917,33]
[325389482,1714804321656,-1625.74,0.00041917,33]
[325389483,1714804321665,-1366.37,0.00041917,33]
[325389484,1714804321676,-500.0,0.00041917,33]
[325389485,1714804321687,-2751.84,0.00041917,33]
[325389486,1714804321696,-562.09,0.00041917,33]
[325389487,1714804321706,-1132.54,0.00041917,33]
[325389488,1714804321715,-813.51,0.00041917,33]
[325389489,1714804321724,-1316.82,0.00041917,33]
[325389490,1714804321734,-1058.81,0.00041917,33]
[325389491,1714804321743,-500.0,0.00041917,33]
[325389492,1714804321752,-500.0,0.00041917,33]
[325389493,1714804321762,-1415.59,0.00041917,33]
[325389494,1714804321771,-2376.39,0.00041917,33]
[325389495,1714804321780,-500.0,0.00041917,33]
[325389496,1714804321790,-485.16,0.00041917,33]
[325389497,1714804321799,-743.8,0.00041917,33]
[325389498,1714804321809,-547.13,0.00041917,33]
[325389499,1714804321818,-500.0,0.00041917,33]
[325389500,1714804321828,-551.0,0.00041917,33]
[325389501,1714804321837,-3663.32,0.00041917,33]
[325389502,1714804321847,-168.09244228,0.00041917,33]
[325389503,1714804321856,-1299.01,0.00041917,33]
[325389504,1714804321865,-218.85111174,0.00041917,33]
[325389505,1714804321875,-1073.64,0.00041917,33]
[325389506,1714804321884,-516.76,0.00041917,33]
[325389507,1714804321894,-1416.17,0.00041917,33]
[325389508,1714804321903,-416.25987866,0.00041917,33]
[325389509,1714804321912,-500.0,0.00041917,33]
[325389510,1714804321922,-603.91,0.00041917,33]
[325389511,1714804321931,-500.0,0.00041917,33]
[325389512,1714804321940,-500.0,0.00041917,33]
[325389513,1714804321950,-4954.14,0.00041917,33]
[325389514,1714804321959,-1310.44,0.00041917,33]
[325389515,1714804321969,-1002.34,0.00041917,33]
[325389516,1714804321978,-650.27,0.00041917,33]
[325389517,1714804321988,-3599.94,0.00041917,33]
[325389518,1714804321997,-500.0,0.00041917,33]
[325389519,1714804322007,-692.42,0.00041917,33]
[325389520,1714804322016,-500.0,0.00041917,33]
[325389521,1714804322025,-1570.16,0.00041917,33]
[325389522,1714804322035,-2363.75,0.00041917,33]
[325389523,1714804322044,-2354.58,0.00041917,2]
[325389524,1714804322054,-500.0,0.00041917,33]
[325389525,1714804322063,-500.0,0.00041917,33]
[325389526,1714804322073,-500.0,0.00041917,33]
[325389527,1714804322083,-1271.01,0.00041917,33]
[325389528,1714804322092,-552.01,0.00041917,33]
[325389529,1714804322102,-1041.13,0.00041917,33]
[325389530,1714804322111,-500.0,0.00041917,33]
[325389531,1714804322121,-500.0,0.00041917,33]
[325389532,1714804322130,-500.0,0.00041917,33]
[325389533,1714804322139,-1702.06,0.00041917,33]
[325389534,1714804322148,-1517.05,0.00041917,33]
[325389535,1714804322157,-500.0,0.00041917,33]
[325389536,1714804322167,-500.0,0.00041917,33]
[325389537,1714804322176,-601.87,0.00041917,33]
[325389538,1714804322185,-549.84,0.00041917,33]
[325389539,1714804322195,-500.0,0.00041917,33]
[325389540,1714804322204,-2517.01,0.00041917,33]
[325389541,1714804322214,-500.0,0.00041917,33]
[325389542,1714804322223,-514.14810316,0.00041917,33]
[325389543,1714804322232,-2094.05,0.00041917,33]
[325389544,1714804322242,-500.0,0.00041917,33]
[325389545,1714804322252,-1718.16,0.00041917,33]
[325389546,1714804322261,-500.0,0.00041917,33]
[325389547,1714804322271,-3121.78,0.00041917,33]
[325389548,1714804322280,-500.0,0.00041917,33]
[325389549,1714804322290,-500.0,0.00041917,33]
[325389550,1714804322299,-1026.5,0.00041917,33]
[325389551,1714804322309,-500.0,0.00041917,33]
[325389552,1714804322318,-568.26,0.00041917,33]
[325389553,1714804322328,-2209.57,0.00041917,33]
[325389554,1714804322338,-500.0,0.00041917,33]
[325389555,1714804322347,-500.0,0.00041917,33]
[325389556,1714804322357,-500.0,0.00041917,33]
[325389557,1714804322367,-500.0,0.00041917,33]
[325389558,1714804322376,-305.87592771,0.00041917,33]
[325389559,1714804322386,-500.0,0.00041917,30]
[325389560,1714804322395,-867.27,0.00041917,33]
[325389561,1714804322405,-500.0,0.00041917,33]
[325389562,1714804322415,-1102.95,0.00041917,33]
[325389563,1714804322424,-500.0,0.00041917,33]
[325389564,1714804322433,-500.0,0.00041917,33]
[325389565,1714804322443,-500.0,0.00041917,33]
[325389566,1714804322452,-407.35108975,0.00041917,33]
[325389567,1714804322461,-2031.24,0.00041917,33]
[325389568,1714804322470,-500.0,0.00041917,33]
[325389569,1714804322481,-500.0,0.00041917,33]
[325389570,1714804322490,-2951.41,0.00041917,33]
[325389571,1714804322500,-500.0,0.00041917,33]
[325389572,1714804322510,-690.04,0.00041917,33]
[325389573,1714804322519,-947.3,0.00041917,33]
[325389574,1714804322529,-1018.58,0.00041917,33]
[325389575,1714804322538,-523.68,0.00041917,33]
[325389576,1714804322548,-581.97,0.00041917,33]
[325389577,1714804322558,-500.0,0.00041917,33]
[325389578,1714804322567,-869.86,0.00041917,33]
[325389579,1714804322576,-1474.11,0.00041917,33]
[325389580,1714804322586,-500.0,0.00041917,33]
[325389581,1714804322906,-1530.28,0.00041917,30]
[325389582,1714804322915,-500.0,0.00041917,33]
[325389583,1714804322925,-1235.1,0.00041917,33]
[325389584,1714804322934,-826.68,0.00041917,33]
[325389585,1714804322948,-1122.24,0.00041917,33]
[325389586,1714804322958,-1453.62,0.00041917,33]
[325389587,1714804322968,-500.0,0.00041917,33]
[325389588,1714804322978,-500.0,0.00041917,33]
[325389589,1714804322988,-718.53,0.00041917,33]
[325389590,1714804322997,-544.97,0.00041917,33]
[325389591,1714804323006,-1470.14,0.00041917,33]
[325389592,1714804323016,-500.0,0.00041917,33]
[325389593,1714804323026,-1219.16,0.00041917,33]
[325389594,1714804323036,-1137.42,0.00041917,33]
[325389595,1714804323047,-2334.71,0.00041917,33]
[325389596,1714804323056,-1249.09,0.00041917,33]
[325389597,1714804323066,-500.0,0.00041917,33]
[325389598,1714804323079,-1740.23,0.00041917,33]
[325389599,1714804323089,-500.0,0.00041917,33]
[325389600,1714804323099,-1058.46,0.00041917,33]
[325389601,1714804323109,-1264.21,0.00041917,33]
[325389602,1714804323118,-1768.95,0.00041917,33]
[325389603,1714804323128,-1642.56,0.00041917,33]
[325389604,1714804323137,-4117.85,0.00041917,7]
[325389605,1714804323147,-583.83,0.00041917,33]
[325389606,1714804323156,-500.0,0.00041917,33]
[325389607,1714804323166,-500.0,0.00041917,33]
[325389608,1714804323176,-993.26,0.00041917,33]
[325389609,1714804323186,-1130.16,0.00041917,33]
[325389610,1714804323196,-500.0,0.00041917,33]
[325389611,1714804323206,-1779.99,0.00041917,33]
[325389612,1714804323215,-799.98,0.00041917,33]
[325389613,1714804323225,-500.0,0.00041917,33]
[325389614,1714804323236,-637.18881891,0.00041917,33]
[325389615,1714804323245,-750.0,0.00041917,30]
[325389616,1714804323254,-3499.25,0.00041917,33]
[325389617,1714804323263,-3108.38,0.00041917,33]
[325389618,1714804323272,-500.0,0.00041917,33]
[325389619,1714804323281,-1085.1,0.00041917,33]
[325389620,1714804323290,-500.0,0.00041917,33]
[325389621,1714804323300,-500.0,0.00041917,33]
[325389622,1714804323310,-500.0,0.00041917,33]
[325389623,1714804323320,-519.58066594,0.00041917,33]
[325389624,1714804323330,-524.40532417,0.00041917,33]
[325389625,1714804323339,-505.20998595,0.00041917,33]
[325389626,1714804323349,-507.08,0.00041917,33]
[325389627,1714804323359,-733.56,0.00041917,33]
[325389628,1714804323368,-500.0,0.00041917,33]
[325389629,1714804323378,-512.0,0.00041917,33]
[325389630,1714804323387,-1180.7,0.00041917,33]
[325389631,1714804323397,-728.21,0.00041917,33]
[325389632,1714804323407,-1873.89,0.00041917,33]
[325389633,1714804323416,-500.0,0.00041917,33]
[325389634,1714804323426,-500.0,0.00041917,33]
[325389635,1714804323436,-2851.66,0.00041917,33]
[325389636,1714804323447,-1461.9,0.00041917,33]
[325389637,1714804323457,-1491.41,0.00041917,33]
[325389638,1714804323467,-1352.23,0.00041917,33]
[325389639,1714804323478,-711.02,0.00041917,33]
[325389640,1714804323488,-186.95952809,0.00041917,33]
[325389641,1714804323499,-500.0,0.00041917,33]
[325389642,1714804323509,-1148.29,0.00041917,33]
[325389643,1714804323519,-737.59,0.00041917,33]
[325389644,1714804323529,-1752.48,0.00041917,33]
[325389645,1714804323538,-856.8,0.00041917,33]
[325389646,1714804323548,-908.48,0.00041917,33]
[325389647,1714804323557,-757.0,0.00041917,33]
[325389648,1714804323567,-500.0,0.00041917,33]
[325389649,1714804323577,-500.0,0.00041917,33]
[325389650,1714804323587,-500.0,0.00041917,33]
[325389651,1714804323597,-1864.51,0.00041917,33]
[325389652,1714804323611,-848.5,0.00041917,33]
[325389653,1714804323621,-1576.82,0.00041917,33]
[325389654,1714804323631,-500.0,0.00041917,33]
[325389655,1714804323642,-500.0,0.00041917,33]
[325389656,1714804323652,-500.0,0.00041917,33]
[325389657,1714804323662,-1751.32,0.00041917,33]
[325389658,1714804323672,-3012.84,0.00041917,33]
[325389659,1714804323681,-1398.32,0.00041917,33]
[325389660,1714804323691,-915.07,0.00041917,33]
[325389661,1714804323701,-641.77,0.00041917,33]
[325389662,1714804323711,-1076.11,0.00041917,33]
[325389663,1714804323720,-500.0,0.00041917,33]
[325389664,1714804323729,-726.55,0.00041917,33]
[325389665,1714804323740,-500.0,0.00041917,33]
[325389666,1714804323750,-4897.49,0.00041917,33]
[325389667,1714804323759,-500.0,0.00041917,33]
[325389668,1714804323769,-1673.82,0.00041917,33]
[325389669,1714804323778,-673.17,0.00041917,33]
[325389670,1714804323788,-186.26385274,0.00041917,33]
[325389671,1714804323798,-718.05,0.00041917,33]
[325389672,1714804323808,-500.0,0.00041917,33]
[325389673,1714804323818,-1432.47,0.00041917,33]
[325389674,1714804323828,-547.59,0.00041917,33]
[325389675,1714804323839,-4397.99,0.00041917,33]
[325389676,1714804323848,-538.9,0.00041917,33]
[325389677,1714804323858,-500.0,0.00041917,33]
[325389678,1714804323868,-500.0,0.00041917,33]
[325389679,1714804323878,-500.0,0.00041917,33]
[325389680,1714804323887,-500.0,0.00041917,33]
[325389681,1714804323897,-2962.97,0.00041917,33]
[325389682,1714804323907,-500.0,0.00041917,33]
[325389683,1714804323917,-500.0,0.00041917,33]
[325389684,1714804323927,-500.0,0.00041917,33]
[325389685,1714804323937,-1632.52,0.00041917,33]
[325389686,1714804323948,-980.48,0.00041917,33]
[325389687,1714804323958,-7464.42,0.00041917,33]
[325389688,1714804323968,-500.0,0.00041917,33]
[325389689,1714804323978,-500.0,0.00041917,33]
[325389690,1714804323987,-500.0,0.00041917,33]
[325389691,1714804323997,-500.0,0.00041917,33]
[325389692,1714804324007,-1213.78,0.00041917,33]
[325389693,1714804324017,-500.0,0.00041917,33]
[325389694,1714804324027,-1926.18,0.00041917,33]
[325389695,1714804324039,-11210.16,0.00041917,33]
[325389696,1714804324049,-500.0,0.00041917,33]
[325389697,1714804324059,-674.71,0.00041917,33]
[325389698,1714804324070,-590.34,0.00041917,33]
[325389699,1714804324080,-657.05,0.00041917,33]
[325389700,1714804324090,-500.0,0.00041917,33]
[325389701,1714804324100,-500.0,0.00041917,33]
[325389702,1714804324110,-878.3,0.00041917,33]
[325389703,1714804324120,-1254.01,0.00041917,33]
[325389704,1714804324130,-2156.01,0.00041917,33]
[325389705,1714804324142,-646.9,0.00041917,33]
[325389706,1714804324152,-1097.34,0.00041917,33]
[325389707,1714804324161,-646.79,0.00041917,33]